Cogmind - Beta 13 *** ADVENTURER MODE // 2024.04.03 @ 17:52:05 Player: Peperos Result: Self-destructed Performance ------------- Evolutions (2) 1000 Regions Visited (5) 1000 Robots Destroyed (25) 125 Value Destroyed (584) 584 Prototype IDs (6) 120 Alien Tech Used (0) 0 Bonus (340) 340 TOTAL SCORE: 3169 Bonus ------- Follower Combat Kills 50 Aligned with FarCom 300 Friendly Fire -10 Cogmind --------- Core Integrity 325/550 Matter 300/300 Energy 125/125 System Corruption 0% Temperature Cool (0) Movement Treading (480) Ox4 Location -8/Materials Parts ------- > --- POWER (1) -------- Light Ion Engine > --- PROPULSION (4) --- Light Treads Improved VTOL Module > --- UTILITY (4) ------ Huge Storage Unit Structural Scanner 0b10 Alert Chip Hacking Suite > --- WEAPON (2) ------- Guided Plasma Cannon > --- INVENTORY (25) --- Light Ion Engine Flight Unit Weight Redist. System Weight Redist. System Hardened Light Armor Plating Hardened Light Armor Plating Grenade Launcher Grenade Launcher Mining Laser Peak State ------------ > --- POWER ------------ Light Ion Engine > --- PROPULSION ------- Light Treads Improved VTOL Module > --- UTILITY ---------- Huge Storage Unit Structural Scanner 0b10 Alert Chip Hacking Suite > --- WEAPON ----------- Guided Plasma Cannon > --- INVENTORY -------- Light Ion Engine Flight Unit Weight Redist. System Weight Redist. System Hardened Light Armor Plating Hardened Light Armor Plating Grenade Launcher Grenade Launcher Mining Laser [Rating: 26] Favorites ----------- Power Ion Engine Engine Ion Engine Propulsion Light Treads Treads Light Treads Wheel Armored Wheel Flight Unit Improved VTOL Module Utility Structural Scanner Device Structural Scanner Storage Huge Storage Unit Processor 0b10 Alert Chip Hackware Hacking Suite Weapon Assault Rifle Energy Cannon Guided Plasma Cannon Ballistic Gun Assault Rifle Launcher Grenade Launcher Build | -11 -10 -10 -10 -9 -8 ------- Run | Yrd Mat Min Exi Min Mat Slots Evolved 4 | . . . . . 4 Power . | . . . . . . Propulsion 2 | . . . . . 2 Utility 2 | . . . . . 2 Weapon . | . . . . . . Parts Attached 19 | 5 7 . . . 7 Power 2 | 1 . . . . 1 Engine 2 | 1 . . . . 1 Core . | . . . . . . Reactor . | . . . . . . Propulsion 6 | 2 2 . . . 2 Treads 4 | 2 1 . . . 1 Leg . | . . . . . . Wheel 1 | . 1 . . . . Hover . | . . . . . . Flight 1 | . . . . . 1 Utility 6 | 1 3 . . . 2 Device 1 | . 1 . . . . Storage 3 | 1 2 . . . . Processor 1 | . . . . . 1 Hackware 1 | . . . . . 1 Protection . | . . . . . . Artifact . | . . . . . . Weapon 5 | 1 2 . . . 2 Energy Gun . | . . . . . . Energy Cannon 1 | . . . . . 1 Ballistic Gun 3 | 1 1 . . . 1 Ballistic Cannon . | . . . . . . Launcher 1 | . 1 . . . . Special Weapon . | . . . . . . Impact Weapon . | . . . . . . Slashing Weapon . | . . . . . . Piercing Weapon . | . . . . . . Special Melee Weapon . | . . . . . . Unidentified Prototypes 4 | . . . . . 4 Parts Lost 6 | . . . . . 6 Power 1 | . . . . . 1 Propulsion 2 | . . . . . 2 Utility . | . . . . . . Weapon 3 | . . . . . 3 Highest Loss Streak 5 | . . . . . 5 To Critical Strikes . | . . . . . . Average Slot Usage (%) 95 | . 97 100 100 100 58 Engine 13 | . 14 14 14 14 6 Treads 26 | . 27 28 28 28 11 Device 12 | . 11 14 14 14 9 Storage 13 | . 14 14 14 14 9 Ballistic Gun 26 | . 26 28 28 28 12 Naked Turns . | . . . . . . Heaviest Build 94 | 12 89 89 89 89 94 Greatest Support 40 | 40 40 40 40 40 40 Greatest Overweight (x) 27 | . 7 2 2 2 27 Average Overweight (x) 1 | . 1 2 2 2 3 Largest Inventory Capacity 25 | 8 25 25 25 25 25 Average Capacity 23 | 7 22 25 25 25 25 Most Carried 15 | 1 12 12 15 15 15 Average Carried 10 | . 6 12 14 15 13 Final Capacity 25 | 8 25 25 25 25 25 Final Carried 15 | 1 12 12 15 15 9 Class Distribution -------------------- 94% | Mutant 5% | Hacker-Mutant Dominant Class ---------------- Mutant | -10/Materials Mutant | -10/Mines Mutant | -10/Exiles Mutant | -9/Mines Hacker-Mutant | -8/Materials Resources | -11 -10 -10 -10 -9 -8 ----------- Run | Yrd Mat Min Exi Min Mat Matter Collected 724 | 208 213 116 . . 187 Remotely . | . . . . . . Salvage Created 848 | . 139 282 . . 427 Parts 45 | . 18 9 . . 18 Haulers Intercepted . | . . . . . . Recyclers Shooed 6 | . 1 . . . 5 Parts Field Recycled . | . . . . . . Retrieved Matter . | . . . . . . Parts Self-Destructed . | . . . . . . Prevented . | . . . . . . Kills | -11 -10 -10 -10 -9 -8 ------- Run | Yrd Mat Min Exi Min Mat Combat Hostiles Destroyed 18 | . 8 2 . . 8 Guns 15 | . 7 2 . . 6 Cannons 2 | . . . . . 2 AOE 1 | . 1 . . . . Classes Destroyed 9 | . 4 2 . . 3 Worker 2 | . 1 1 . . . Builder 1 | . 1 . . . . Recycler 2 | . . 2 . . . Operator 1 | . . . . . 1 Watcher 1 | . 1 . . . . Swarmer 8 | . 8 . . . . Grunt 6 | . . 2 . . 4 Brawler 1 | . . . . . 1 Sentry 3 | . . . . . 3 Best Kill Streak 3 | . 3 2 . . 3 Combat Bots Only 3 | . 3 1 . . 3 Max Kills in Single Turn 1 | . 1 1 . . 1 Gunslinging . | . . . . . . Exploded 1 | . 1 . . . . Melee . | . . . . . . Uniques/NPCs Destroyed . | . . . . . . Combat | -11 -10 -10 -10 -9 -8 -------- Run | Yrd Mat Min Exi Min Mat Hostile Shots Fired 148 | . 36 17 . . 95 Missed 44 | . 13 6 . . 25 Damage Taken 1138 | . 158 129 . . 851 Core 267 | . 34 8 . . 225 Absorbed by Shields . | . . . . . . Ignored by Resistances 334 | . 51 37 . . 246 Core Remaining (%) 91 | 100 . . . 83 . Volleys Fired 106 | . 24 15 . . 67 Largest 2 | . 2 2 . . 2 Hottest 120 | . 50 40 . . 120 Shots Fired 174 | . 43 30 . . 101 Gun 164 | . 41 30 . . 93 Cannon 8 | . . . . . 8 Launcher 2 | . 2 . . . . Special . | . . . . . . Kinetic 164 | . 41 30 . . 93 Thermal 8 | . . . . . 8 Explosive 2 | . 2 . . . . Electromagnetic . | . . . . . . Robot Hit Streak 31 | . 6 29 . . 31 Robot Miss Streak 2 | . 2 . . . 2 Penetration Max . | . . . . . . Secondary Targets 5 | . 1 . . . 4 Max Gunslinging Chain 1 | . 1 . . . 1 Shots Hit Robots 140 | . 26 27 . . 87 Core Hits 53 | . 15 9 . . 29 Critical Kills . | . . . . . . Critical Parts Destroyed 2 | . . . . . 2 Critical Strikes 2 | . . . . . 2 Destroy 2 | . . . . . 2 Melee Attacks . | . . . . . . Impact . | . . . . . . Slashing . | . . . . . . Piercing . | . . . . . . Sneak Attacks . | . . . . . . Combat Hostiles . | . . . . . . Follow-up Attacks . | . . . . . . Damage Inflicted 1732 | . 400 292 . . 1040 Guns 1286 | . 269 292 . . 725 Cannons 315 | . . . . . 315 Explosions 121 | . 121 . . . . Melee . | . . . . . . Ramming 10 | . 10 . . . . Kinetic 1286 | . 269 292 . . 725 Thermal 315 | . . . . . 315 Explosive 121 | . 121 . . . . Electromagnetic . | . . . . . . Impact . | . . . . . . Slashing . | . . . . . . Piercing . | . . . . . . Highest Corruption 1 | . 1 1 1 1 . Average Corruption 1 | . 1 1 1 1 . Corruption Purged . | . . . . . . Corruption Blocked . | . . . . . . Effects 22 | . 6 10 6 . . Message Errors 7 | . . 3 4 . . Matter Fused 6 | . 4 2 . . . Heat Flow Errors 3 | . . 1 2 . . Data Loss (minor) 3 | . . 3 . . . Data Loss (major) 2 | . 2 . . . . Alerts 1 | . . 1 . . . Overload Shots . | . . . . . . Overflow Damage 30 | . 5 . . . 25 Projectiles 25 | . . . . . 25 Explosions 5 | . 5 . . . . Melee . | . . . . . . Knockbacks 1 | . 1 . . . . Impact 1 | . 1 . . . . Kinetic . | . . . . . . Secondary . | . . . . . . Self-Inflicted Damage . | . . . . . . Shots . | . . . . . . Rammed 1 | . 1 . . . . Targets Rammed 2 | . 2 . . . . Kicked . | . . . . . . Crushed 1 | . 1 . . . . Highest Temperature 315 | . . 170 214 . 315 Average Temperature 85 | . . 56 100 . 89 Received Heat Transfer 687 | . . 93 . . 594 Siege Activations . | . . . . . . Robots Corrupted . | . . . . . . Combat Hostiles . | . . . . . . Parts Fried . | . . . . . . Impact Corruptions . | . . . . . . Robots Melted . | . . . . . . Combat Hostiles . | . . . . . . Parts Melted 4 | . . 2 . . 2 Heat Transferred 640 | . . . . . 640 Parts Sabotaged . | . . . . . . Parts Stolen . | . . . . . . Parts Stripped . | . . . . . . Power Chain Reactions . | . . . . . . Alert | -11 -10 -10 -10 -9 -8 ------- Run | Yrd Mat Min Exi Min Mat Peak Influence 190 | . 126 99 . . 190 Initial 17 | . . 17 . . . Average 37 | . 39 26 . . 85 Maximum Alert Level . | . . . . . . Low Security (%) 100 | 100 100 100 . 100 100 Level 1 . | . . . . . . Level 2 . | . . . . . . Level 3 . | . . . . . . Level 4 . | . . . . . . Level 5 . | . . . . . . High Security . | . . . . . . Max Security . | . . . . . . Squads Dispatched 1 | . . . . . 1 Investigation . | . . . . . . Extermination . | . . . . . . Reinforcement 1 | . . . . . 1 Assault . | . . . . . . Garrison . | . . . . . . Intercept . | . . . . . . Searches Triggered . | . . . . . . Construction Impeded . | . . . . . . Haulers Reinforced . | . . . . . . Active Scanning Responses . | . . . . . . Cargo Convoy Interrupts . | . . . . . . Stealth | -11 -10 -10 -10 -9 -8 --------- Run | Yrd Mat Min Exi Min Mat Distress Signals 1 | . . . . . 1 Communications Jammed . | . . . . . . Distress Signals . | . . . . . . Times Spotted 44 | . 18 4 . . 22 Peak Tracking Total 5 | . 4 2 . . 5 Tactical Retreats . | . . . . . . Traps | -11 -10 -10 -10 -9 -8 ------- Run | Yrd Mat Min Exi Min Mat Traps Triggered 3 | . 3 . . . . Indirectly . | . . . . . . Trap Hack Attempts . | . . . . . . Triggered . | . . . . . . Disarmed . | . . . . . . Reprogrammed . | . . . . . . Reused . | . . . . . . Traps Extracted . | . . . . . . Installed . | . . . . . . Triggered . | . . . . . . Machines | -11 -10 -10 -10 -9 -8 ---------- Run | Yrd Mat Min Exi Min Mat Machines Disabled . | . . . . . . Max in Single Turn . | . . . . . . Machines Repaired . | . . . . . . Machines Dismantled . | . . . . . . Machines Sabotaged . | . . . . . . Overloaded Fab Kills . | . . . . . . Hacking | -11 -10 -10 -10 -9 -8 --------- Run | Yrd Mat Min Exi Min Mat Machines Accessed 5 | . 5 . . . . Terminals 5 | . 5 . . . . Fabricators . | . . . . . . Repair Stations . | . . . . . . Recycling Units . | . . . . . . Scanalyzers . | . . . . . . Garrison Access . | . . . . . . Total Hacks 11 | . 11 . . . . Successful 9 | . 9 . . . . Failed 2 | . 2 . . . . Catastrophic . | . . . . . . Database Lockouts . | . . . . . . Manual 6 | . 5 . 1 . . Terminals 11 | . 11 . . . . Fabricators . | . . . . . . Repair Stations . | . . . . . . Recycling Units . | . . . . . . Scanalyzers . | . . . . . . Garrison Access . | . . . . . . Terminal Hacks 9 | . 9 . . . . Robot Analysis 2 | . 2 . . . . Prototype ID Bank 1 | . 1 . . . . Level Access Points 1 | . 1 . . . . Branch Access Points 1 | . 1 . . . . Emergency Access Points 1 | . 1 . . . . Alert Level 2 | . 2 . . . . Registered Prototypes 1 | . 1 . . . . Fabricator Hacks . | . . . . . . Repair Station Hacks . | . . . . . . Recycling Unit Hacks . | . . . . . . Scanalyzer . | . . . . . . Garrison Access Hacks . | . . . . . . Unauthorized Hacks . | . . . . . . Terminals . | . . . . . . Fabricators . | . . . . . . Repair Stations . | . . . . . . Recycling Units . | . . . . . . Scanalyzers . | . . . . . . Garrison Access . | . . . . . . Data Cores Recovered . | . . . . . . Used . | . . . . . . Hacking Detections 2 | . 2 . . . . Full Trace Events 1 | . 1 . . . . Feedback Events . | . . . . . . Feedback Blocked . | . . . . . . Robot Schematics Acquired . | . . . . . . Robots Built . | . . . . . . Authchips . | . . . . . . Time . | . . . . . . Total Robot Build Rating . | . . . . . . Part Schematics Acquired . | . . . . . . Parts Built . | . . . . . . Authchips . | . . . . . . Time . | . . . . . . Total Part Build Rating . | . . . . . . Parts Repaired . | . . . . . . Time . | . . . . . . Parts Recycled . | . . . . . . Recycled Matter . | . . . . . . Retrieved Matter . | . . . . . . Retrieved Components . | . . . . . . Parts Scanalyzed . | . . . . . . Part Schematics Acquired . | . . . . . . Parts Damaged . | . . . . . . Bothacking | -11 -10 -10 -10 -9 -8 ------------ Run | Yrd Mat Min Exi Min Mat Used RIF Installer . | . . . . . . Robots Hacked . | . . . . . . Non-combat . | . . . . . . Combat . | . . . . . . Robot Hacks Applied . | . . . . . . Relay Couplers Released . | . . . . . . Fabnet Peak Effective % . | . . . . . . Robots Rewired . | . . . . . . Allies Hacked . | . . . . . . Hacks Repelled . | . . . . . . Allies | -11 -10 -10 -10 -9 -8 -------- Run | Yrd Mat Min Exi Min Mat Total Allies 2 | . . 2 . . . Largest Group 2 | . . 2 1 . . Highest-Rated Group 41 | . . 41 10 . . Highest-Rated Ally 31 | . . 31 10 . . Total Orders . | . . . . . . Ally Attacks 14 | . . 14 . . . Total Damage 267 | . . 267 . . . Kills 2 | . . 2 . . . Allies Corrupted . | . . . . . . Allies Melted . | . . . . . . Intel | -11 -10 -10 -10 -9 -8 ------- Run | Yrd Mat Min Exi Min Mat Robot Analysis Total 2 | . 2 . . . . Derelict Logs Recovered 1 | . . 1 . . . Drone Launches . | . . . . . . Drone Recoveries . | . . . . . . Exploration | -11 -10 -10 -10 -9 -8 ------------- Run | Yrd Mat Min Exi Min Mat Turns Passed 4256 | 66 1379 1141 1264 77 329 Spaces Moved 1309 | 40 468 342 395 25 39 Core 7 | 5 . . . . 2 Treads 1300 | 35 466 342 395 25 37 Legs . | . . . . . . Wheels 2 | . 2 . . . . Hover . | . . . . . . Flight . | . . . . . . Fastest Speed 50 | 50 160 320 320 320 320 Average Speed 301 | 146 275 320 320 320 400 Slowest Speed 1400 | 160 320 320 320 320 1400 Overloaded Moves . | . . . . . . Propulsion Burnouts . | . . . . . . Robots Hopped . | . . . . . . Cave-ins Triggered . | . . . . . . Time Travels 1 | . . . . . 1 Exploration Rate (%) 45 | 4 90 84 78 8 6 Regions Visited 5 Branch Regions 3 Pre-discovered Areas 2 | . . 2 . . . Known Exits Taken 1 | . 1 . . . . Unknown Exits Taken 4 | 1 . 1 1 1 . Scrap Searched 1 | . . 1 . . . Spaces Dug . | . . . . . . Terrain Destroyed 6 | . 6 . . . . Melee . | . . . . . . Projectile . | . . . . . . AOE 6 | . 6 . . . . Terrain Rammed . | . . . . . . Walls Destroyed . | . . . . . . Machines Disabled . | . . . . . . Actions | -11 -10 -10 -10 -9 -8 --------- Run | Yrd Mat Min Exi Min Mat Total 1470 | 45 517 363 397 24 124 Wait 20 | . 2 7 . . 11 Move 1304 | 39 467 341 394 24 39 Hop . | . . . . . . Pick Up 14 | 1 10 . 3 . . Fast Attach 13 | 5 6 . . . 2 Attach 5 | . . . . . 5 Detach 1 | . 1 . . . . Swap 1 | . 1 . . . . Drop 4 | . 4 . . . . Fire 106 | . 24 15 . . 67 Melee . | . . . . . . Ram . | . . . . . . Kick . | . . . . . . Crush 2 | . 2 . . . . Escape Stasis . | . . . . . . Rewire . | . . . . . . Trap . | . . . . . . Miscellaneous . | . . . . . . Route ------- -11/Scrapyard -10/Materials (discovered 4 exits: *Mat x3 / *Min) -10/Mines (discovered 2 exits: *Mat / *Exi) -10/Exiles (discovered 2 exits: [*Min x2]) -9/Mines -8/Materials History --------- Turn | Location | Event 3 | -11/Scrapyard | Discovered new exit (range 15) 67 | -11/Scrapyard | Entered Materials 155 | -10/Materials | Identified exit to Materials 307 | -10/Materials | Build established: Mutant 332 | -10/Materials | Identified exit to Mines 1446 | -10/Materials | Entered Mines 1690 | -10/Mines | Discovered exit to Materials (range 7) 1694 | -10/Mines | Learned location of Storage (-7) 2106 | -10/Mines | Discovered new exit (range 14) 2275 | -10/Mines | Learned location of Zion (-7) 2564 | -10/Mines | Deemed a non-threat by the Exiles lab entrance 2587 | -10/Mines | Entered Exiles 2587 | -10/Exiles | Accompanied by 1 ally 2667 | -10/Exiles | Met 8R-AWN 2722 | -10/Exiles | Met EX-HEX 2821 | -10/Exiles | Met EX-BIN 2856 | -10/Exiles | Aligned with FarCom system 2859 | -10/Exiles | Given EX-Vault access code 2933 | -10/Exiles | Opened EX-Vault 2946 | -10/Exiles | Found Prototype Device 2953 | -10/Exiles | Found Prototype Energy Cannon 2970 | -10/Exiles | Found Prototype Processor 3042 | -10/Exiles | Warned to stay clear of 0b10 Research branches 3128 | -10/Exiles | Met EX-DEC 3285 | -10/Exiles | Discovered new exit (range 14) 3526 | -10/Exiles | Visited The Gauntlet 3813 | -10/Exiles | Discovered new exit (range 14) 3851 | -10/Exiles | Stole three prototypes: Gui. Plasma Cannon, Chronowheel, 0b10 Alert Chip 3851 | -10/Exiles | Entered Mines 3852 | -9/Mines | Assembled infested the area 3857 | -9/Mines | Assisted by a Guerilla fighting off Assembled 3903 | -9/Mines | Discovered new exit (range 8) 3928 | -9/Mines | Entered Materials 3928 | -8/Materials | Evolved 4 slots: Propulsion x2, Utility x2 4155 | -8/Materials | Lost 5 parts (1p2n2w) 4198 | -8/Materials | Identified Gui. Plasma Cannon 4199 | -8/Materials | Identified Chronowheel 4199 | -8/Materials | Activated Chronowheel 4199 | -8/Materials | Spacetime reconverged on an earlier point 4237 | -8/Materials | Identified 0b10 Alert Chip 4257 | -8/Materials | Self-destructed Last Messages --------------- 04215_ K-01 Serf collects debris. 04215_ Lgt. Armor Plating melted. 04215_ Lgt. Treads melted. 04215_ Y-45 Defender destroyed. 04218_ K-01 Serf collects debris. 04219_ R-06 Scavenger collects Sml. Storage Unit. 04219_ Acquired 81 matter. 04221_ K-01 Serf cleans the Electrolysis Chamber. 04224_ R-06 Scavenger collects Com. Wheel. 04225_ K-01 Serf collects debris. 04228_ R-06 Scavenger collects Unknown Device. 04229_ Acquired Prototype Flight Unit. 04229_ Identified Imp. VTOL Module. 04231_ K-01 Serf collects debris. 04237_ Identified 0b10 Alert Chip. 04238_ K-01 Serf collects debris. 04238_ Acquired 20 matter. 04241_ K-01 Serf collects debris. Map ----- +----------------------------------------------------+ | | | ?????????????????????????????????????????????????? | | ?????????????????????????????????????????????????? | | ?????????????????????????????????????????????????? | | ?????????????????????????????????????????????????? | | ?????????????????????????????????????????????????? | | ?????????????????????????????????????????????????? | | ?????????????????????????????????????????????????? | | ??????????????????????????????????#########??????? | | ?????????????????????????????? ###########??????? | | ????????????????????g?????????###### ??????? | | ?????????????????g???????????? # # """"" !##???? | | ?????????????????????????????? # # """"" ##???? | | ?????????????????????????????? # # """"" ##???? | | ?????????????????????????????? # + ##???? | | ?????????????????????????????? # # """"" ##???? | | ?????????????????????????????? # # """"" ##???? | | ?????????????????## ?????????? # # """"" ##???? | | ?????????????????## ?########### # #????? | | ?????????????????## ?########### ##########?###? | | ????????????????### ?## # ############### | | ????????????????### w## """ # ###########T### | | ????????????????## # """ # | | ???????????????? # """ # | | ????????????????????? + r # = | | ????????????????????? #%%@ ""k#*! | | ?????????????????????## "" # % | | ????????????????????? # %k "" g % w | | ????????????????????? # % l g ################### | | ????????????????????? ############################ | | ????????????????????? # ###????????????????? | | ?????????????????????????????????????????????????? | | ?????????????????????????????????????????????????? | | ?????????????????????????????????????????????????? | | ?????????????????????????????????????????????????? | | ?????????????????????????????????????????????????? | | ?????????????????????????????????????????????????? | | ?????????????????????????????????????????????????? | | ?????????????????????????????????????????????????? | | ?????????????????????????????????????????????????? | | ?????????????????????????????????????????????????? | | ?????????????????????????????????????????????????? | | ?????????????????????????????????????????????????? | | ?????????????????????????????????????????????????? | | ?????????????????????????????????????????????????? | | ?????????????????????????????????????????????????? | | ?????????????????????????????????????????????????? | | ?????????????????????????????????????????????????? | | ?????????????????????????????????????????????????? | | ?????????????????????????????????????????????????? | +----------------------------------------------------+ Best States ------------- Heat Dissipation 31 Energy Generation 10 Energy Capacity 250 Matter Stores 300 Matter Capacity 300 Sight Range 16 Terrain Scan Density 10 Resistance: KI 20 Resistance: TH 20 Resistance: EX 20 Resistance: EM 20 Resistance: I 20 Resistance: S 20 Resistance: P 20 Evasion (%) 40 Recoil Reduction 2 Offensive Hacking 20 Item Schematics ----------------- None Robot Schematics ------------------ None Fabricated ------------ Nothing Alien Tech Used ----------------- None Achievements -------------- None Challenges ------------ None Game ------ Seed BottomlessPiercingTreads Manual? 0 Play Time 00:17:13 Cumulative 18.1 hours Start 2024.04.03 @ 17:34:49 End 2024.04.03 @ 17:52:05 Sessions 1 Manual Loads 0 Difficulty Adventurer Special Mode None Game No. 22 Rogue 20 Adventurer 2 Explorer 0 Win Type - Total 0 Types 0/0/0/0/0/0/0/0/0 Lore% 20 Gallery% 25 Achievement% 21 Wizard Run 0 Options --------- Layout 1 ASCII 0 Keyboard 0 Movement Mouse Keybinds 0 Fullscreen 1 Font 24/Smallcaps Map View 50x35 Zoom Use 0% Tactical HUD 1 Map Filters NONE Filters NONE Steam 1 RUN: e37128a2-25bb-459f-98bc-26c64784e2e4